Cogmind - Beta 16.1 @@@ ROGUE MODE // 2026.02.18 @ 10:45:40 Player: SunShine214 Result: Destroyed by C-57 Dissector with Dual-blade Saw Performance ------------- Evolutions (8) 4000 Regions Visited (16) 3200 Robots Destroyed (88) 440 Value Destroyed (2761) 2761 Prototype IDs (34) 680 Alien Tech Used (0) 0 Bonus (1910) 1910 TOTAL SCORE: 12991 Bonus ------- Triggered Max Security 1000 High Alert Combat Kills 28 Follower Combat Kills 82 Aligned with FarCom 300 Scanned by Researcher 500 Cogmind --------- Core Integrity 0/1450 Matter 154/300 Energy 80/100 System Corruption 28% Temperature Cool (0) Movement Core (50) Location -2/Research Parts ------- > --- POWER (2) -------- (None) > --- PROPULSION (6) --- (None) > --- UTILITY (12) ----- (None) > --- WEAPON (3) ------- (None) > --- INVENTORY (5) ---- Improved Propulsion Shielding KE Penetrator Peak State ------------ > --- POWER ------------ Particle Reactor > --- PROPULSION ------- Field Propulsion Drive Nuclear Pulse Array Field Propulsion Array Electron Diverter > --- UTILITY ---------- 2N-1CE's Frost Array Advanced Sensor Array Advanced Signal Interpreter Advanced Transmission Jammer Reaction Control System Improved Propulsion Shielding Hacking Suite Hacking Suite Makeshift Hacking Suite Advanced Hacking Suite > --- WEAPON ----------- Smartbomb Launcher Heavy Mace > --- INVENTORY -------- Nuclear Pulse Array Improved Propulsion Shielding KE Penetrator Heavy Proton Missile Launcher [Rating: 117] Favorites ----------- Power Ion Engine Engine Ion Engine Power Core Light Nuclear Core Reactor Particle Reactor Propulsion Light Treads Treads Light Treads Hover Unit Backup Propulsion III Flight Unit Nuclear Pulse Thruster Utility Hacking Suite Device Advanced Drone Bay Storage Small Storage Unit Processor Advanced Targeting Computer Hackware Hacking Suite Protection Improved Propulsion Shielding Weapon Light EM Pulse Cannon Energy Gun Medium Laser Energy Cannon Light EM Pulse Cannon Ballistic Gun Gauss Rifle Launcher Smartbomb Launcher Special Weapon Mining Laser Impact Weapon Heavy Mace Slashing Weapon Great Axe Build | -11 -10 -10 -10 -9 -8 -7 -7 -7 -6 -5 -4 -4 -4 -3 -3 -2 ------- Run | Yrd Mat Min Exi Min Mat Fac Low Low Fac Fac Fac Upp Upp Res Tes Res Slots Evolved 16 | . . . . . 4 2 . . 2 2 2 . . 2 . 2 Power 1 | . . . . . . . . . . 1 . . . . . . Propulsion 4 | . . . . . 2 . . . 1 1 . . . . . . Utility 10 | . . . . . 2 2 . . 1 . 1 . . 2 . 2 Weapon 1 | . . . . . . . . . . . 1 . . . . . Parts Attached 108 | 7 14 . 1 1 11 10 2 . 16 20 10 . 1 3 5 7 Power 13 | 1 1 . . . 3 1 1 . 2 1 1 . . . 1 1 Engine 3 | 1 1 . . . . . . . 1 . . . . . . . Core 8 | . . . . . 3 1 1 . 1 1 1 . . . . . Reactor 2 | . . . . . . . . . . . . . . . 1 1 Propulsion 29 | 2 3 . . . 1 5 . . 4 7 2 . . 1 1 3 Treads 9 | 2 3 . . . 1 . . . . 3 . . . . . . Leg . | . . . . . . . . . . . . . . . . . Wheel . | . . . . . . . . . . . . . . . . . Hover . | . . . . . . . . . . . . . . . . . Flight 20 | . . . . . . 5 . . 4 4 2 . . 1 1 3 Utility 33 | 2 1 . 1 1 3 2 . . 5 8 5 . 1 2 2 . Device 12 | 1 . . 1 . 1 . . . . 4 2 . . 1 2 . Storage 1 | 1 . . . . . . . . . . . . . . . . Processor 5 | . . . . 1 1 1 . . . . 1 . . 1 . . Hackware 8 | . . . . . 1 1 . . 2 2 1 . 1 . . . Protection 7 | . 1 . . . . . . . 3 2 1 . . . . . Artifact . | . . . . . . . . . . . . . . . . . Weapon 33 | 2 9 . . . 4 2 1 . 5 4 2 . . . 1 3 Energy Gun 11 | 2 5 . . . . 1 . . 1 2 . . . . . . Energy Cannon 6 | . 2 . . . . . . . 2 . . . . . 1 1 Ballistic Gun 6 | . . . . . 4 . . . 1 1 . . . . . . Ballistic Cannon . | . . . . . . . . . . . . . . . . . Launcher 4 | . 1 . . . . 1 . . . 1 1 . . . . . Special Weapon 2 | . 1 . . . . . 1 . . . . . . . . . Impact Weapon 1 | . . . . . . . . . . . 1 . . . . . Slashing Weapon 3 | . . . . . . . . . 1 . . . . . . 2 Piercing Weapon . | . . . . . . . . . . . . . . . . . Special Melee Weapon . | . . . . . . . . . . . . . . . . . Unidentified Prototypes 11 | . . . . . 1 2 1 . 1 1 1 . . . 4 . Corrupted Parts 5 | . . . . . . . . . 1 . . . . . . 4 System Corruption 28 | . . . . . . . . . 3 . . . . . . 25 Parts Lost 51 | . 2 . . . 2 . 8 . 6 9 1 1 . 2 15 5 Power 6 | . 1 . . . . . 2 . . 1 . . . 1 1 . Propulsion 17 | . . . . . . . 4 . 3 4 . . . . 4 2 Utility 17 | . . . . . . . 1 . 2 3 1 1 . 1 7 1 Weapon 11 | . 1 . . . 2 . 1 . 1 1 . . . . 3 2 Highest Loss Streak 18 | . 1 . . . 1 . 6 . 2 3 1 1 . 2 13 18 To Critical Strikes 2 | . . . . . . . 1 . . . . 1 . . . . Average Backups 5 | 2 7 7 7 7 6 6 5 1 3 4 4 3 3 3 4 2 Power . | . . . . . . . . . . . . . . . . . Propulsion 1 | 1 3 3 3 3 3 1 . . . . . . . . 1 . Utility 1 | . 2 3 3 3 2 2 2 1 1 1 1 1 1 1 1 1 Weapon 1 | 1 1 1 1 1 1 1 1 . . 2 2 2 2 2 2 1 Tool/Special . | . . . . . . . . . . . . . . . . . Unused Backups 22 | . 7 4 . . 1 2 2 . 3 2 1 . . . . . Power 1 | . . . . . . . . . 1 . . . . . . . Propulsion 9 | . 5 2 . . 1 . . . 1 . . . . . . . Utility 7 | . 1 2 . . . 1 1 . . 1 1 . . . . . Weapon 5 | . 1 . . . . 1 1 . 1 1 . . . . . . Tool/Special . | . . . . . . . . . . . . . . . . . Average Slot Usage (%) 69 | . 98 100 100 100 85 80 68 37 40 43 52 68 68 71 69 6 Engine 4 | . 12 14 14 14 2 . . . . . . . . . . . Core 2 | . . . . . 6 4 1 . 1 3 2 5 5 4 . . Treads 11 | . 28 28 28 28 24 1 . . . . . . . . . . Flight 7 | . . . . . . 26 21 . 6 8 13 21 21 19 17 1 Device 4 | . 9 . 6 . 6 . 1 6 . 2 6 6 5 6 15 . Storage 5 | . 14 14 14 14 9 7 6 . . . . . . . . . Processor 6 | . . . . 14 16 21 15 15 9 1 . . . 2 4 1 Hackware 9 | . . . . . 2 9 15 15 16 17 20 21 21 23 17 . Protection 3 | . 4 14 7 . . . . . 4 2 5 5 5 4 3 . Energy Gun 3 | . 21 . . . . . . . . . . . . . . . Energy Cannon 5 | . 4 28 28 28 7 . . . . . . . . . . . Ballistic Gun 1 | . . . . . 10 7 5 . . . . . . . . . Peak Build Rating 117 | 9 10 11 18 11 31 37 42 26 31 59 85 91 89 100 117 38 Average Rating 30 | 5 8 10 14 11 25 26 29 25 21 37 61 85 87 95 100 12 On Entrance 35 | . 9 10 11 18 11 27 32 14 26 16 50 85 85 89 92 20 Avg Prop Armor Cover (%) 2 | . . . . . . . 12 . . . . . . . 2 . Naked Turns 40 | . . . . . . . . . . . . . . . . 40 Heaviest Build 35 | 14 19 19 19 18 19 18 15 14 15 23 23 32 22 23 35 29 Greatest Support 60 | 40 40 40 40 40 60 60 17 3 17 46 44 44 44 44 45 15 Greatest Overweight (x) 9 | . . . . . . 1 3 4 1 2 . . . . . 9 Average Overweight (x) . | . . . . . . . . 4 . . . . . . . . Largest Inventory Capacity 8 | 8 8 8 8 8 8 8 8 5 5 5 5 5 5 5 5 5 Average Capacity 6 | 7 8 8 8 8 8 8 7 5 5 5 5 5 5 5 5 5 Most Carried 8 | 4 8 8 8 8 8 8 8 1 5 5 5 5 3 5 5 5 Average Carried 6 | 2 7 7 8 8 7 7 7 1 4 4 4 3 3 4 5 2 Final Capacity 8 | 8 8 8 8 8 8 8 5 5 5 5 5 5 5 5 5 5 Final Carried 8 | 4 8 8 8 8 8 8 3 1 4 5 5 3 3 5 5 2 Class Distribution -------------------- 47% | Mutant 30% | Hacker-Mutant 11% | Hacker-Sprinter 4% | Hacker-Ninja 4% | Scavenger-Sprinter Dominant Class ---------------- Mutant | -10/Materials Mutant | -10/Mines Mutant | -10/Exiles Mutant | -9/Mines Mutant | -8/Materials Scavenger-Sprinter | -7/Factory Hacker-Sprinter | -7/Lower Caves Hacker-Mutant | -7/Lower Caves Hacker-Mutant | -6/Factory Hacker-Mutant | -5/Factory Hacker-Mutant | -4/Factory Hacker-Sprinter | -4/Upper Caves Hacker-Sprinter | -4/Upper Caves Hacker-Ninja | -3/Research Hacker-Ninja | -3/Testing Mutant | -2/Research Resources | -11 -10 -10 -10 -9 -8 -7 -7 -7 -6 -5 -4 -4 -4 -3 -3 -2 ----------- Run | Yrd Mat Min Exi Min Mat Fac Low Low Fac Fac Fac Upp Upp Res Tes Res Matter Collected 1956 | 270 121 40 . 68 321 13 150 . 110 334 229 80 70 . 107 43 Remotely . | . . . . . . . . . . . . . . . . . Salvage Created 3348 | 124 515 56 . 351 1002 88 23 . 243 557 250 99 . . . 40 Parts 167 | 10 39 5 . 12 41 10 4 . 15 18 1 8 . . . 4 Haulers Intercepted 4 | . 1 . . . 1 . . . . 1 1 . . . . . Recyclers Shooed 3 | . . . . . 1 . . . 1 1 . . . . . . Parts Field Recycled . | . . . . . . . . . . . . . . . . . Retrieved Matter . | . . . . . . . . . . . . . . . . . Parts Self-Destructed 12 | . . . . . . . 7 2 . . . 3 . . . . Prevented 2 | . . . . . . . . . . . . 2 . . . . Parts Restored . | . . . . . . . . . . . . . . . . . Kills | -11 -10 -10 -10 -9 -8 -7 -7 -7 -6 -5 -4 -4 -4 -3 -3 -2 ------- Run | Yrd Mat Min Exi Min Mat Fac Low Low Fac Fac Fac Upp Upp Res Tes Res Combat Hostiles Destroyed 59 | . 14 3 . 6 16 3 1 . 4 5 1 5 . . . 1 Melee 6 | . . . . . . . . . 3 2 1 . . . . . Guns 28 | . 12 . . . 10 2 1 . 1 2 . . . . . . Cannons 13 | . . 3 . 5 5 . . . . . . . . . . . AOE 11 | . 2 . . 1 . 1 . . . 1 . 5 . . . 1 Classes Destroyed 14 | 2 6 . . . 3 . 1 . 1 . . . . . . 1 Worker 7 | . 1 . . . . 1 . . . 2 3 . . . . . Tunneler 4 | 3 1 . . . . . . . . . . . . . . . Hauler 4 | . 1 . . . 1 . . . . 1 1 . . . . . Recycler 5 | 1 . . . 1 1 . . . . 2 . . . . . . Operator 2 | . 1 . . . . . . . 1 . . . . . . . Watcher 7 | . 1 . . . 3 1 . . . . 2 . . . . . Swarmer 18 | . 3 3 . . 2 3 . . 1 . 1 5 . . . . Cutter 1 | . . . . . . . . . . . . . . . . 1 Grunt 30 | . 11 . . 6 11 . . . 1 1 . . . . . . Brawler 1 | . . . . . 1 . . . . . . . . . . . Duelist 1 | . . . . . 1 . . . . . . . . . . . Sentry 2 | . . . . . . . . . 1 1 . . . . . . Hunter 2 | . . . . . 1 . . . 1 . . . . . . . Programmer 4 | . . . . . . . 1 . . 3 . . . . . . Best Kill Streak 4 | 2 4 3 . 3 4 4 1 . 2 4 4 3 . . . 1 Combat Bots Only 4 | . 4 3 . 3 3 3 1 . 1 2 1 3 . . . 1 Max Kills in Single Turn 3 | 1 2 2 . 1 1 1 1 . 1 2 1 3 . . . 1 Gunslinging . | . . . . . . . . . . . . . . . . . Exploded 3 | . 1 . . 1 . 1 . . . 1 . 3 . . . 1 Melee 1 | . . . . . . . . . 1 1 1 . . . . . Uniques/NPCs Destroyed . | . . . . . . . . . . . . . . . . . Combat | -11 -10 -10 -10 -9 -8 -7 -7 -7 -6 -5 -4 -4 -4 -3 -3 -2 -------- Run | Yrd Mat Min Exi Min Mat Fac Low Low Fac Fac Fac Upp Upp Res Tes Res Hostile Shots Fired 717 | . 54 2 . 15 47 11 102 19 89 85 35 31 . 6 137 84 Missed 283 | . 11 1 . 5 17 2 37 6 39 32 23 14 . 5 67 24 Hits 434 | . 43 1 . 10 30 9 65 13 50 53 12 17 . 1 70 60 Melee 41 | . . . . . . . . . . . . . . . 1 40 Projectile 393 | . 43 1 . 10 30 9 65 13 50 53 12 17 . 1 69 20 AOE 6 | . . . . . . . . . . 2 . . . 2 1 1 Critical Strikes 45 | . 2 . . 1 2 . 3 . 4 5 . 1 . . 3 24 Part Disruptions 6 | . . . . . . . 5 . . . . . . . 1 . Damage Taken 8678 | . 453 8 . 123 511 164 961 230 862 1411 253 326 . 78 1287 2011 Core 3707 | . 107 . . 34 26 15 481 75 554 322 . 55 . 16 550 1472 Absorbed by Shields 383 | . . . . . . . . . 10 20 . . . . 353 . Redirected to Shielding 271 | . . . . . . . . . 105 39 21 46 . 16 44 . Core Remaining (%) 63 | 100 . . . 43 95 . . 18 34 67 . . 95 . 56 . Volleys Fired 174 | 10 48 2 . 7 51 9 9 . 6 25 . 4 . . . 3 Largest 2 | 2 2 2 . 2 2 2 2 . 1 1 . 1 . . . 1 Hottest 150 | 90 150 112 . 112 112 64 64 . 50 81 . 46 . . . 40 Shots Fired 274 | 20 77 4 . 14 98 13 11 . 6 24 . 4 . . . 3 Gun 201 | 20 67 . . . 71 9 8 . 6 19 . . . . . 1 Cannon 47 | . 2 4 . 14 27 . . . . . . . . . . . Launcher 24 | . 7 . . . . 4 2 . . 5 . 4 . . . 2 Special 2 | . 1 . . . . . 1 . . . . . . . . . Kinetic 100 | . . . . . 71 9 8 . . 11 . . . . . 1 Thermal 94 | 20 66 . . . . . . . . 8 . . . . . . Explosive 20 | . 7 . . . . 4 2 . . 5 . 2 . . . . Electromagnetic 59 | . 4 4 . 14 27 . . . 6 . . 2 . . . 2 Robot Hit Streak 16 | 6 15 2 . 8 16 5 6 . 3 11 . 2 . . . 4 Robot Miss Streak 3 | 1 2 1 . 1 3 1 2 . 1 1 . 2 . . . 1 Penetration Max 1 | . . . . . 1 . 1 . . 1 . . . . . . Secondary Targets 2 | . 1 . . . 1 . . . . . . . . . . . Max Gunslinging Chain 1 | . 1 . . . 1 . . . . . . . . . . . Shots Hit Robots 233 | 14 52 2 . 10 68 8 6 . 16 39 12 2 . . . 4 Core Hits 125 | 5 35 4 . 8 33 7 3 . 6 17 1 4 . . . 2 Critical Kills . | . . . . . . . . . . . . . . . . . Critical Parts Destroyed 5 | . . . . . 2 . . . . . 3 . . . . . Critical Strikes 15 | 1 3 . . . 2 . . . 2 4 3 . . . . . Burn 4 | 1 3 . . . . . . . . . . . . . . . Destroy 2 | . . . . . 2 . . . . . . . . . . . Smash 3 | . . . . . . . . . . . 3 . . . . . Sever 6 | . . . . . . . . . 2 4 . . . . . . Melee Attacks 81 | . . . . . . . . . 20 20 18 1 . 2 16 4 Impact 37 | . . . . . . . . . . . 18 1 . 2 16 . Slashing 44 | . . . . . . . . . 20 20 . . . . . 4 Piercing . | . . . . . . . . . . . . . . . . . Sneak Attacks 10 | . . . . . . . . . 2 2 6 . . . . . Combat Hostiles . | . . . . . . . . . . . . . . . . . Follow-up Attacks . | . . . . . . . . . . . . . . . . . Damage Inflicted 7643 | 168 1081 62 . 316 1596 283 217 . 652 1845 879 407 . . . 137 Guns 2717 | 168 621 . . . 1110 144 142 . 81 451 . . . . . . Cannons 788 | . 27 58 . 258 445 . . . . . . . . . . . Explosions 1756 | . 426 . . 48 40 139 75 . . 535 . 407 . . . 86 Melee 2331 | . . . . . . . . . 547 854 879 . . . . 51 Ramming 51 | . 7 4 . 10 1 . . . 24 5 . . . . . . Kinetic 1607 | . . . . . 1110 144 142 . . 211 . . . . . . Thermal 1298 | 168 782 . . 48 40 . . . . 240 . 20 . . . . Explosive 1228 | . 245 . . . . 139 75 . . 535 . 234 . . . . Electromagnetic 1128 | . 47 58 . 258 445 . . . 81 . . 153 . . . 86 Impact 879 | . . . . . . . . . . . 879 . . . . . Slashing 1452 | . . . . . . . . . 547 854 . . . . . 51 Piercing . | . . . . . . . . . . . . . . . . . Highest Corruption 28 | . . . . . . . 8 8 8 7 . . . 5 20 28 Average Corruption 5 | . . . . . . . 3 8 6 3 . . . 5 6 18 Corruption Purged . | . . . . . . . . . . . . . . . . . Corruption Blocked . | . . . . . . . . . . . . . . . . . Effects 48 | . . . . . . . 4 2 13 9 . . . . 10 10 Message Errors 10 | . . . . . . . . . 3 3 . . . . 2 2 Matter Fused 10 | . . . . . . . 1 . 2 1 . . . . 2 4 Heat Flow Errors 3 | . . . . . . . 2 1 . . . . . . . . Energy Discharges 10 | . . . . . . . . 1 6 1 . . . . 2 . Parts Rejected 1 | . . . . . . . . . 1 . . . . . . . Data Loss (minor) 6 | . . . . . . . 1 . . 3 . . . . 2 . Data Loss (major) 1 | . . . . . . . . . 1 . . . . . . . Misdirections 6 | . . . . . . . . . . . . . . . 2 4 Weapon Failures 1 | . . . . . . . . . . 1 . . . . . . Overload Shots . | . . . . . . . . . . . . . . . . . Overflow Damage 745 | . 9 . . . 10 . . . 102 69 486 69 . . . . Projectiles . | . . . . . . . . . . . . . . . . . Explosions 140 | . 9 . . . 10 . . . . 52 . 69 . . . . Melee 605 | . . . . . . . . . 102 17 486 . . . . . Knockbacks 7 | . . . . . . . . . . . 7 . . . . . Impact 7 | . . . . . . . . . . . 7 . . . . . Kinetic . | . . . . . . . . . . . . . . . . . Secondary . | . . . . . . . . . . . . . . . . . Self-Inflicted Damage 223 | . 20 . . 6 53 35 . . 11 2 . 35 . . . 61 Shots 8 | . 1 . . 1 1 1 . . . . . 2 . . . 2 Rammed 14 | . 2 2 . . 1 . . . 6 1 2 . . . . . Targets Rammed 15 | . 2 2 . 1 1 . . . 6 1 2 . . . . . Kicked . | . . . . . . . . . . . . . . . . . Crushed 1 | . . . . 1 . . . . . . . . . . . . Highest Temperature 324 | 150 324 102 . 256 125 3 174 120 1 70 4 7 . . 6 . Average Temperature 65 | 53 77 53 . 116 31 3 84 69 1 33 4 3 . . 6 . Received Heat Transfer 1140 | . 165 . . 84 225 . 48 . 348 103 27 9 . . 104 27 Effects 1 | . . . . 1 . . . . . . . . . . . . Interference 1 | . . . . 1 . . . . . . . . . . . . Siege Activations . | . . . . . . . . . . . . . . . . . Martial Activations . | . . . . . . . . . . . . . . . . . Shielding Activations . | . . . . . . . . . . . . . . . . . Robots Disrupted . | . . . . . . . . . . . . . . . . . Combat Hostiles . | . . . . . . . . . . . . . . . . . Robots Corrupted 6 | . . . . . 1 . . . . . 5 . . . . . Combat Hostiles 1 | . . . . . 1 . . . . . . . . . . . Parts Fried 4 | . 1 . . 1 1 . . . . . 1 . . . . . Impact Corruptions 14 | . . . . . . . . . . . 14 . . . . . Robots Melted . | . . . . . . . . . . . . . . . . . Combat Hostiles . | . . . . . . . . . . . . . . . . . Parts Melted 7 | 2 2 . . . . . . . . 3 . . . . . . Heat Transferred 2944 | 520 2028 . . . 50 . . . . 296 . 50 . . . . Parts Sabotaged . | . . . . . . . . . . . . . . . . . Parts Stolen . | . . . . . . . . . . . . . . . . . Parts Stripped . | . . . . . . . . . . . . . . . . . Power Chain Reactions 3 | . . . . 1 1 . . . . . . 1 . . . . Alert | -11 -10 -10 -10 -9 -8 -7 -7 -7 -6 -5 -4 -4 -4 -3 -3 -2 ------- Run | Yrd Mat Min Exi Min Mat Fac Low Low Fac Fac Fac Upp Upp Res Tes Res Maximum Alert Level 5 | . 1 . . . 1 2 . . . . . . . . 5 4 Low Security (%) 83 | 100 90 100 . 100 68 47 . . 100 100 100 . . 100 . . Level 1 7 | . 9 . . . 31 36 . . . . . . . . . . Level 2 . | . . . . . . 16 . . . . . . . . . . Level 3 1 | . . . . . . . . . . . . . . . . 83 Level 4 . | . . . . . . . . . . . . . . . . 16 Level 5 . | . . . . . . . . . . . . . . . . . High Security . | . . . . . . . . . . . . . . . . . Max Security 5 | . . . . . . . . . . . . . . . 99 . Peak Influence 1872 | 10 220 128 . 85 265 422 . . 107 70 109 . . 64 1872 1100 Initial 1100 | . . 58 . . 18 97 . . . 51 . . . 49 14 1100 Average 173 | . 87 66 . 30 159 236 . . 10 17 8 . . 50 1642 1075 Influence Increases 3248 | 20 500 70 . 167 629 372 45 15 291 257 218 155 . 17 442 50 Destroy 0b10 Robot/C 1260 | . 280 60 . 120 400 60 20 . 80 100 20 100 . . . 20 Destroy 0b10 Robot/NC 135 | 20 25 . . 5 25 10 . . 5 25 20 . . . . . Destroy Leader 258 | . 74 10 . 20 78 12 10 . 20 22 2 10 . . . . Allied During Kill 23 | . . . . . 23 . . . . . . . . . . . Successful Hack 124 | . 8 . . . 7 10 . . 18 46 35 . . . . . Disable Machine 390 | . 60 . . 15 30 240 . . . . . . . 15 30 . Destroy Structure 158 | . 38 . . 7 6 40 . . 3 34 6 . . 2 22 . Partial Spotted 75 | . . . . . . . . . . 30 30 . . . 15 . Lose Combat Pursuer 825 | . 15 . . . 60 . 15 15 165 . 105 45 . . 375 30 Influence Decreases 3830 | 20 350 220 . 120 461 398 234 15 184 364 109 171 19 65 162 938 Entered New Map 1291 | . . 92 . . 29 118 71 . . 56 . 41 19 25 12 828 Time Decay 1946 | 20 330 128 . 120 372 130 120 15 144 268 99 120 . 20 . 60 Lost Part 393 | . 20 . . . 20 . 33 . 40 40 10 10 . 20 150 50 Lost Ally 50 | . . . . . 40 . 10 . . . . . . . . . Purge Threat 150 | . . . . . . 150 . . . . . . . . . . Squads Dispatched 46 | . 4 . . . 3 4 . . 8 4 4 . . 1 12 6 Investigation 12 | . 3 . . . 2 2 . . 3 . 2 . . . . . Extermination 7 | . . . . . . 1 . . 2 3 1 . . . . . Reinforcement 11 | . 1 . . . 1 1 . . 2 1 1 . . 1 . 3 Assault 12 | . . . . . . . . . . . . . . . 12 . Garrison 4 | . . . . . . . . . 1 . . . . . . 3 Intercept . | . . . . . . . . . . . . . . . . . Searches Triggered . | . . . . . . . . . . . . . . . . . Construction Impeded 1 | . . . . . . . . . 1 . . . . . . . Haulers Reinforced 1 | . . . . . . . . . . . 1 . . . . . Active Scanning Responses . | . . . . . . . . . . . . . . . . . Cargo Convoy Interrupts . | . . . . . . . . . . . . . . . . . Stealth | -11 -10 -10 -10 -9 -8 -7 -7 -7 -6 -5 -4 -4 -4 -3 -3 -2 --------- Run | Yrd Mat Min Exi Min Mat Fac Low Low Fac Fac Fac Upp Upp Res Tes Res Distress Signals 6 | . . . . . 3 . . . 1 . . . . . 2 . Communications Jammed . | . . . . . . . . . . . . . . . . . Distress Signals . | . . . . . . . . . . . . . . . . . Times Spotted 229 | . 24 1 . 6 26 6 13 10 25 12 13 5 . 5 70 13 Peak Tracking Total 50 | . 4 1 . 3 4 3 10 5 11 3 6 3 . 6 50 8 Tactical Retreats 24 | . 1 . . . 3 . 1 1 6 . 3 3 . . 4 2 Traps | -11 -10 -10 -10 -9 -8 -7 -7 -7 -6 -5 -4 -4 -4 -3 -3 -2 ------- Run | Yrd Mat Min Exi Min Mat Fac Low Low Fac Fac Fac Upp Upp Res Tes Res Traps Triggered 15 | . 4 . . . . 2 . . 7 1 1 . . . . . Indirectly 1 | . . . . . . 1 . . . . . . . . . . Trap Hack Attempts . | . . . . . . . . . . . . . . . . . Triggered . | . . . . . . . . . . . . . . . . . Disarmed 1 | . . . . . . . . . . 1 . . . . . . Reprogrammed . | . . . . . . . . . . . . . . . . . Reused . | . . . . . . . . . . . . . . . . . Traps Extracted . | . . . . . . . . . . . . . . . . . Installed . | . . . . . . . . . . . . . . . . . Triggered . | . . . . . . . . . . . . . . . . . Machines | -11 -10 -10 -10 -9 -8 -7 -7 -7 -6 -5 -4 -4 -4 -3 -3 -2 ---------- Run | Yrd Mat Min Exi Min Mat Fac Low Low Fac Fac Fac Upp Upp Res Tes Res Machines Disabled 28 | . 4 . . 1 2 16 2 . . . . . . 1 2 . Max in Single Turn 10 | . 2 . . 1 1 10 1 . . . . . . 1 1 . Garrison Access 2 | . . . . . . 1 . . . . 1 . . . . . Machines Repaired . | . . . . . . . . . . . . . . . . . Machines Dismantled . | . . . . . . . . . . . . . . . . . Machines Sabotaged . | . . . . . . . . . . . . . . . . . Overloaded Fab Kills . | . . . . . . . . . . . . . . . . . Hacking | -11 -10 -10 -10 -9 -8 -7 -7 -7 -6 -5 -4 -4 -4 -3 -3 -2 --------- Run | Yrd Mat Min Exi Min Mat Fac Low Low Fac Fac Fac Upp Upp Res Tes Res Machines Accessed 46 | . 2 1 1 . 5 7 . . 9 12 8 . . . . 1 Terminals 29 | . 2 . . . 5 4 . . 5 7 5 . . . . 1 Fabricators 3 | . . . . . . . . . 1 . 2 . . . . . Repair Stations 1 | . . . . . . . . . . 1 . . . . . . Recycling Units 4 | . . . . . . 2 . . 1 1 . . . . . . Scanalyzers 4 | . . . . . . . . . 2 2 . . . . . . Garrison Access 3 | . . . . . . 1 . . . 1 1 . . . . . Total Hacks 104 | . 5 1 1 . 11 17 . . 26 27 15 . . . . 1 Successful 56 | . 1 1 1 . 1 8 . . 16 16 12 . . . . . Failed 48 | . 4 . . . 10 9 . . 10 11 3 . . . . 1 Catastrophic 14 | . 2 . . . 5 1 . . 4 1 . . . . . 1 Database Lockouts . | . . . . . . . . . . . . . . . . . Manual 38 | . 5 . 1 . 8 2 1 . 8 9 4 . . . . . Terminals 73 | . 5 . . . 11 10 . . 16 19 11 . . . . 1 Fabricators 6 | . . . . . . . . . 3 . 3 . . . . . Repair Stations 1 | . . . . . . . . . . 1 . . . . . . Recycling Units 10 | . . . . . . 5 . . 3 2 . . . . . . Scanalyzers 7 | . . . . . . . . . 4 3 . . . . . . Garrison Access 5 | . . . . . . 2 . . . 2 1 . . . . . Terminal Hacks 30 | . 1 1 1 . 1 3 . . 6 10 7 . . . . . Record 6 | . . . . . . 1 . . 2 2 1 . . . . . Part Schematic 1 | . . . . . . . . . 1 . . . . . . . Robot Analysis 1 | . . . . . . . . . . 1 . . . . . . Open Door 2 | . . 1 . . . . . . . . 1 . . . . . Level Access Points 3 | . . . . . . . . . 1 1 1 . . . . . Branch Access Points 5 | . 1 . . . 1 1 . . 1 . 1 . . . . . Machine Index 1 | . . . . . . . . . . 1 . . . . . . Fabricator Index 1 | . . . . . . . . . . 1 . . . . . . Alert Level 1 | . . . . . . . . . . . 1 . . . . . Unreport Threat 1 | . . . . . . 1 . . . . . . . . . . Disarm Traps 1 | . . . . . . . . . . 1 . . . . . . Hauler Manifests 1 | . . . . . . . . . . . 1 . . . . . Registered Components 2 | . . . . . . . . . . 1 1 . . . . . Registered Prototypes 2 | . . . . . . . . . 1 1 . . . . . . Zone Layout 1 | . . . . . . . . . . 1 . . . . . . Proto ID Catalog 1 | . . . 1 . . . . . . . . . . . . . Fabricator Hacks 6 | . . . . . . . . . 3 . 3 . . . . . Load Schematic 2 | . . . . . . . . . 1 . 1 . . . . . Build 4 | . . . . . . . . . 2 . 2 . . . . . Repair Station Hacks 1 | . . . . . . . . . . 1 . . . . . . Refit 1 | . . . . . . . . . . 1 . . . . . . Recycling Unit Hacks 7 | . . . . . . 4 . . 1 2 . . . . . . Process 2 | . . . . . . 1 . . 1 . . . . . . . Retrieve Matter 3 | . . . . . . 2 . . . 1 . . . . . . Retrieve Components 2 | . . . . . . 1 . . . 1 . . . . . . Scanalyzer 6 | . . . . . . . . . 4 2 . . . . . . Retrieve Study 6 | . . . . . . . . . 4 2 . . . . . . Garrison Access Hacks 2 | . . . . . . 1 . . . . 1 . . . . . Seal Access 2 | . . . . . . 1 . . . . 1 . . . . . Unauthorized Hacks 4 | . . . . . . . . . 2 1 1 . . . . . Terminals 4 | . . . . . . . . . 2 1 1 . . . . . Assimilate 3 | . . . . . . . . . 2 . 1 . . . . . Botnet 1 | . . . . . . . . . . 1 . . . . . . Fabricators . | . . . . . . . . . . . . . . . . . Repair Stations . | . . . . . . . . . . . . . . . . . Recycling Units . | . . . . . . . . . . . . . . . . . Scanalyzers . | . . . . . . . . . . . . . . . . . Garrison Access . | . . . . . . . . . . . . . . . . . Data Cores Recovered . | . . . . . . . . . . . . . . . . . Used . | . . . . . . . . . . . . . . . . . Hacking Detections 32 | . 2 . . . 4 6 . . 7 8 4 . . . . 1 Full Trace Events 8 | . . . . . 2 1 . . 3 . 2 . . . . . Feedback Events 1 | . . . . . . . . . . . 1 . . . . . Hackware Fried 1 | . . . . . . . . . . . 1 . . . . . Feedback Blocked . | . . . . . . . . . . . . . . . . . Robot Schematics Acquired . | . . . . . . . . . . . . . . . . . Robots Built 2 | . . . . . . . . . . . 2 . . . . . Authchips . | . . . . . . . . . . . . . . . . . Time 187 | . . . . . . . . . . . 187 . . . . . Total Robot Build Rating 14 | . . . . . . . . . . . 14 . . . . . Part Schematics Acquired 1 | . . . . . . . . . 1 . . . . . . . Parts Built 6 | . . . . . . . . . 4 . 2 . . . . . Authchips . | . . . . . . . . . . . . . . . . . Time 119 | . . . . . . . . . 83 . 36 . . . . . Total Part Build Rating 22 | . . . . . . . . . 16 . 6 . . . . . Part Studies Acquired 6 | . . . . . . . . . 4 2 . . . . . . Parts Repaired . | . . . . . . . . . . . . . . . . . Time . | . . . . . . . . . . . . . . . . . Parts Recycled . | . . . . . . . . . . . . . . . . . Recycled Matter 67 | . . . . . . 14 . . 53 . . . . . . . Retrieved Matter 14 | . . . . . . 14 . . . . . . . . . . Retrieved Components 1 | . . . . . . . . . . 1 . . . . . . Parts Scanalyzed . | . . . . . . . . . . . . . . . . . Part Schematics Acquired . | . . . . . . . . . . . . . . . . . Parts Damaged . | . . . . . . . . . . . . . . . . . Bothacking | -11 -10 -10 -10 -9 -8 -7 -7 -7 -6 -5 -4 -4 -4 -3 -3 -2 ------------ Run | Yrd Mat Min Exi Min Mat Fac Low Low Fac Fac Fac Upp Upp Res Tes Res Used RIF Installer . | . . . . . . . . . . . . . . . . . Robots Hacked . | . . . . . . . . . . . . . . . . . Non-combat . | . . . . . . . . . . . . . . . . . Combat . | . . . . . . . . . . . . . . . . . Robot Hacks Applied . | . . . . . . . . . . . . . . . . . Relay Couplers Released . | . . . . . . . . . . . . . . . . . Fabnet Peak Effective % . | . . . . . . . . . . . . . . . . . Robots Rewired . | . . . . . . . . . . . . . . . . . Allies Hacked . | . . . . . . . . . . . . . . . . . Hacks Repelled . | . . . . . . . . . . . . . . . . . Allies | -11 -10 -10 -10 -9 -8 -7 -7 -7 -6 -5 -4 -4 -4 -3 -3 -2 -------- Run | Yrd Mat Min Exi Min Mat Fac Low Low Fac Fac Fac Upp Upp Res Tes Res Total Allies 4 | . . . . 2 . . . . . . 2 . . . . . Largest Group 2 | . . . . 2 2 . . . . . 2 . . . . . Highest-Rated Group 62 | . . . . 42 42 . . . . . 62 . . . . . Highest-Rated Ally 31 | . . . . 31 31 . . . . . 31 . . . . . Total Orders 10 | . . . . . 2 1 1 . . 2 2 2 . . . . EXPLORE 10 | . . . . . 2 1 1 . . 2 2 2 . . . . Ally Attacks 19 | . . . . . 19 . . . . . . . . . . . Total Damage 353 | . . . . . 353 . . . . . . . . . . . Kills 4 | . . . . . 4 . . . . . . . . . . . Allies Corrupted 1 | . . . . . . . . . . . 1 . . . . . Allies Melted . | . . . . . . . . . . . . . . . . . Intel | -11 -10 -10 -10 -9 -8 -7 -7 -7 -6 -5 -4 -4 -4 -3 -3 -2 ------- Run | Yrd Mat Min Exi Min Mat Fac Low Low Fac Fac Fac Upp Upp Res Tes Res Active Infowar (turns) 957 | 27 665 . . . . . . . . . 132 89 . 32 12 . Sensors 44 | . . . . . . . . . . . . . . 32 12 . Terrain 692 | 27 665 . . . . . . . . . . . . . . . Jamming 221 | . . . . . . . . . . . 132 89 . . . . Robot Analysis Total 1 | . . . . . . . . . . 1 . . . . . . Derelict Logs Recovered 6 | . . 1 . 2 . . 1 . . . . 2 . . . . Drone Launches 28 | . . . . . 2 1 1 16 . 4 2 2 . . . . Drone Recoveries 11 | . . . . . 2 1 . . . 4 2 2 . . . . Exploration | -11 -10 -10 -10 -9 -8 -7 -7 -7 -6 -5 -4 -4 -4 -3 -3 -2 ------------- Run | Yrd Mat Min Exi Min Mat Fac Low Low Fac Fac Fac Upp Upp Res Tes Res Turns Passed 6884 | 154 1041 263 354 346 869 279 295 78 1059 827 571 244 5 50 326 123 Spaces Moved 7218 | 71 470 158 221 200 328 605 600 30 1054 1246 765 590 10 122 585 163 Core 684 | 3 . . . . . . 65 30 499 2 . . . . 2 83 Treads 1467 | 68 470 158 221 200 328 1 . . . 21 . . . . . . Legs . | . . . . . . . . . . . . . . . . . Wheels . | . . . . . . . . . . . . . . . . . Hover . | . . . . . . . . . . . . . . . . . Flight 5067 | . . . . . . 604 535 . 555 1223 765 590 10 122 583 80 Fastest Speed 16 | 50 160 160 160 160 160 28 28 250 30 34 32 32 32 32 31 16 Average Speed 62 | 155 160 160 160 160 161 30 33 250 41 39 35 32 32 32 33 44 Slowest Speed 500 | 160 160 160 160 160 163 163 200 250 112 240 37 32 32 32 50 500 Overloaded Moves 29 | . . . . . . . . . . . . . . . . 29 Propulsion Burnouts . | . . . . . . . . . . . . . . . . . Robots Hopped 45 | . . . . . . 2 1 . 6 15 4 . . . 17 . Potential Cave-ins . | . . . . . . . . . . . . . . . . . Cave-ins Triggered . | . . . . . . . . . . . . . . . . . Exploration Rate (%) 38 | 3 65 38 61 51 46 17 98 40 31 37 16 76 2 4 73 4 Regions Visited 16 Branch Regions 8 Pre-discovered Areas . | . . . . . . . . . . . . . . . . . Known Exits Taken 9 | . 1 . . 1 1 1 . . 1 1 1 . 1 1 . . Unknown Exits Taken 7 | 1 . 1 1 . . . 1 1 . . . 1 . . 1 . Scrap Searched 3 | . . . . 1 . . 1 . . . . . 1 . . . Spaces Dug 21 | . . . . . . . . . 3 . 3 . . 1 14 . Terrain Destroyed 188 | . 42 . . 7 3 46 12 . 3 18 3 38 . 1 14 1 Melee 21 | . . . . . . . . . 3 . 3 . . 1 14 . Projectile 3 | . . . . . . . . . . 2 . . . . . 1 AOE 164 | . 42 . . 7 3 46 12 . . 16 . 38 . . . . Terrain Rammed . | . . . . . . . . . . . . . . . . . Walls Destroyed . | . . . . . . . . . . . . . . . . . Machines Disabled . | . . . . . . . . . . . . . . . . . Actions | -11 -10 -10 -10 -9 -8 -7 -7 -7 -6 -5 -4 -4 -4 -3 -3 -2 --------- Run | Yrd Mat Min Exi Min Mat Fac Low Low Fac Fac Fac Upp Upp Res Tes Res Total 9147 | 91 679 168 221 211 569 685 683 34 1623 1516 1028 639 10 127 667 196 Wait 1377 | . 118 . . 3 166 48 53 3 472 175 229 38 . . 64 8 Move 7123 | 70 469 157 220 199 327 600 597 29 1041 1215 756 589 9 121 561 163 Hop 34 | . . . . . . 2 1 . 6 15 4 . . . 6 . Pick Up 51 | 4 13 3 . . 3 3 4 . 11 6 3 1 . . . . Fast Attach 98 | 7 3 . . . 5 5 4 1 15 22 8 2 1 3 8 14 Attach 19 | . . . . . 1 2 3 . 4 7 1 . . . . 1 Detach 24 | . . . . . 1 4 2 . 3 10 1 1 . 1 . 1 Swap 28 | . 13 . 1 1 6 5 1 . . . 1 . . . . . Drop 87 | . 13 4 . . 8 7 9 1 11 20 5 3 . . 4 2 Fire 174 | 10 48 2 . 7 51 9 9 . 6 25 . 4 . . . 3 Melee 81 | . . . . . . . . . 20 20 18 1 . 2 16 4 Ram 9 | . . . . . . . . . 6 1 2 . . . . . Kick . | . . . . . . . . . . . . . . . . . Crush 6 | . 2 2 . 1 1 . . . . . . . . . . . Escape Stasis 36 | . . . . . . . . . 28 . . . . . 8 . Rewire . | . . . . . . . . . . . . . . . . . Trap . | . . . . . . . . . . . . . . . . . Miscellaneous . | . . . . . . . . . . . . . . . . . Route ------- -11/Scrapyard -10/Materials (discovered 4 exits: [*Mat x2] / *Min x2) -10/Mines (discovered 2 exits: [*Mat] / *Exi) -10/Exiles -9/Mines -8/Materials -7/Factory (discovered 2 exits: *Low x2) -7/Lower Caves -7/Lower Caves -6/Factory (discovered 6 exits: *Fac x4 / Low x2) -5/Factory (discovered 4 exits: *Fac x4) -4/Factory (discovered 8 exits: Res x4 / *Upp x2 / *Ext x2) -4/Upper Caves -4/Upper Caves -3/Research -3/Testing -2/Research History --------- Turn | Location | Event 6 | -11/Scrapyard | Discovered new exit (range 14) 155 | -11/Scrapyard | Entered Materials 300 | -10/Materials | Build established: Mutant 651 | -10/Materials | Discovered new exit (range 9) 678 | -10/Materials | Identified exit to Mines 860 | -10/Materials | Discovered new exit (range 15) 1196 | -10/Materials | Entered Mines 1348 | -10/Mines | Learned Materials trap positions 1351 | -10/Mines | Discovered new exit (range 6) 1357 | -10/Mines | Found the Drone Emporium 1365 | -10/Mines | Found Prototype Device 1452 | -10/Mines | Deemed a non-threat by the Exiles lab entrance 1452 | -10/Mines | Discovered new exit (range 5) 1459 | -10/Mines | Entered Exiles 1496 | -10/Exiles | Met 8R-AWN 1527 | -10/Exiles | Met EX-HEX 1581 | -10/Exiles | Met EX-BIN 1607 | -10/Exiles | Aligned with FarCom system 1608 | -10/Exiles | Given EX-Vault access code 1647 | -10/Exiles | Opened EX-Vault 1658 | -10/Exiles | Found Supersonic Drone Bay 1688 | -10/Exiles | Warned to stay clear of 0b10 Research branches 1738 | -10/Exiles | Met EX-DEC 1799 | -10/Exiles | Discovered new exit (range 10) 1813 | -10/Exiles | Left Exiles lab with Supersonic Drone Bay 1813 | -10/Exiles | Entered Mines 1818 | -9/Mines | Core integrity fell below 50% 1902 | -9/Mines | Learned Materials non-interactive machine intel 2122 | -9/Mines | Discovered new exit (range 10) 2137 | -9/Mines | Identified exit to Materials 2148 | -9/Mines | Learned Materials emergency access door positions 2159 | -9/Mines | Entered Materials 2159 | -8/Materials | Accompanied by 2 allies 2159 | -8/Materials | Evolved 4 slots: Propulsion x2, Utility x2 2160 | -8/Materials | Loaded intel: 13 trap records 2160 | -8/Materials | Identified Decoy Drone Bay 2162 | -8/Materials | Loaded intel: 35 non-interactive machine locations 2164 | -8/Materials | Led the pair of lost Derelicts to an unsafe place 2736 | -8/Materials | Discovered new exit (range 66) 3027 | -8/Materials | Identified exit to Factory 3028 | -8/Materials | Entered Factory 3028 | -7/Factory | Evolved 2 slots: Utility x2 3065 | -7/Factory | Identified exit to Lower Caves 3307 | -7/Factory | Entered Lower Caves 3324 | -7/Lower Caves | Discovered new exit (range 130) 3328 | -7/Lower Caves | Build established: Scavenger-Sprinter 3358 | -7/Lower Caves | Spotted B-75 Beast 3431 | -7/Lower Caves | Learned Factory stockpile data 3482 | -7/Lower Caves | Acquired the password to a Derelict Tinkerer's latest research 3485 | -7/Lower Caves | Found Prototype Special Weapon 3485 | -7/Lower Caves | Identified Molecular Deconstructor 3512 | -7/Lower Caves | Attacked by a delusional Derelict stockpiling parts 3548 | -7/Lower Caves | Caught by Unaware searching for contraband prototypes 3576 | -7/Lower Caves | Core integrity fell below 50% 3586 | -7/Lower Caves | Caught by Unaware searching for contraband prototypes 3602 | -7/Lower Caves | Entered another Lower Caves area 3605 | -7/Lower Caves | Lost 6 parts (1p3n1u1w) 3606 | -7/Lower Caves | Discovered new exit (range 16) 3658 | -7/Lower Caves | Core integrity fell below 20% 3680 | -7/Lower Caves | Entered Factory 3680 | -6/Factory | Evolved 2 slots: Propulsion x1, Utility x1 3719 | -6/Factory | Identified exit to Lower Caves 3748 | -6/Factory | Fabricated Angular Momentum Engine? 3852 | -6/Factory | Build established: Hacker-Mutant 3878 | -6/Factory | Fabricated Imp. Propulsion Shielding? 4304 | -6/Factory | Identified exit to Factory 4670 | -6/Factory | Core integrity fell below 50% 4670 | -6/Factory | Garrison activated, responded to threat 4739 | -6/Factory | Entered another Factory area 4739 | -5/Factory | Evolved 2 slots: Power x1, Propulsion x1 4887 | -5/Factory | Found Prototype Launcher 4887 | -5/Factory | Identified Smartbomb Launcher 5067 | -5/Factory | Lost 3 parts (2u1w) 5113 | -5/Factory | Lost 3 parts (2n1u) 5266 | -5/Factory | Identified exit to Factory 5351 | -5/Factory | Spotted B-75 Beast 5566 | -5/Factory | Entered another Factory area 5566 | -4/Factory | Evolved 2 slots: Utility x1, Weapon x1 5761 | -4/Factory | Fabricated W-44 Eye? 5779 | -4/Factory | Hacking Suite fried by hacking feedback 5915 | -4/Factory | Discovered new exit (range 6) 5994 | -4/Factory | Identified exit to Upper Caves 5994 | -4/Factory | Identified exit to Extension 5999 | -4/Factory | Identified exit to Research 6130 | -4/Factory | Fabricated Imp. Propulsion Shielding (x2) 6137 | -4/Factory | Entered Upper Caves 6238 | -4/Upper Caves | Attracted the attention of an 0b10 checkpoint 6278 | -4/Upper Caves | Learned location of 1 exit from Research 6310 | -4/Upper Caves | Build established: Hacker-Sprinter 6373 | -4/Upper Caves | Learned Research terminal intel 6376 | -4/Upper Caves | Discovered new exit (range 16) 6381 | -4/Upper Caves | Entered another Upper Caves area 6382 | -4/Upper Caves | Discovered exit to Research (range 6) 6386 | -4/Upper Caves | Entered Research 6386 | -3/Research | Evolved 2 slots: Utility x2 6387 | -3/Research | Identified exit to Testing 6388 | -3/Research | Loaded intel: 24 terminal locations 6436 | -3/Research | Entered Testing 6437 | -3/Testing | Maximum security lockdown engaged 6441 | -3/Testing | Found Prototype Device 6441 | -3/Testing | Identified 2N-1CE's Frost Array 6496 | -3/Testing | Found Prototype Energy Cannon 6496 | -3/Testing | Identified Disintegrator 6673 | -3/Testing | Build established: Hacker-Ninja 6720 | -3/Testing | Spotted Investigator 6720 | -3/Testing | Scanned by Researcher 6722 | -3/Testing | Spotted Striker 6724 | -3/Testing | System corruption reached 10% 6755 | -3/Testing | Discovered new exit (range 16) 6762 | -3/Testing | Entered Research 6762 | -2/Research | Evolved 2 slots: Utility x2 6824 | -2/Research | Core integrity fell below 50% 6829 | -2/Research | System corruption reached 10% 6877 | -2/Research | Core integrity fell below 20% 6885 | -2/Research | Destroyed by C-57 Dissector with Dual-blade Saw Last Messages --------------- 06856_ Penetrated by Slug. 06856_ C-57 Dissector destroyed. 06856_ Adv. Surge Thruster destroyed. 06857_ Penetrated by Slug. 06857_ Adv. Surge Thruster destroyed. 06857_ Penetrated by Slug. 06858_ Acquired KE Penetrator+. 06859_ Penetrated by Slug. 06860_ Acquired 43 matter. 06864_ Penetrated by Slug. 06866_ VJWTMR<640ERDOI<5YJUH8WU3WYQ3EQ 06868_ ALERT: Suspicious intruders detected, dispatching Cutter reinforcements to area. 06877_ U-05 Engineer lays Concrete. 06877_ U-05 Engineer builds a Wall. 06878_ U-05 Engineer lays Concrete. 06879_ U-05 Engineer builds a Wall. 06884_ U-05 Engineer lays Concrete. 06885_ C